[Event "FIDE Women World Blitz 2021"]
[Site "Warsaw"]
[Date "2021.12.29"]
[Round "3.2"]
[White "Osmak, Yuliia"]
[Black "Koneru, Humpy"]
[Result "1-0"]
[ECO "D36"]
[WhiteElo "2198"]
[BlackElo "2586"]
[Annotator "ChessBase"]
[PlyCount "85"]
[EventDate "2021.12.29"]
[EventType "swiss"]
[EventCountry "POL"]
[Tiebreak "Cut1 Buchholz"]
[SourceTitle "playchess.com"]
[Source "ChessBase"]
[SourceQuality "1"]
[TimeControl "180+2"]

1. c4 {[%emt 0:00:01]} e6 {[%emt 0:00:02]} 2. Nc3 {[%emt 0:00:05]} d5 {[%emt 0:
00:01]} 3. d4 {[%emt 0:00:01]} Nf6 {[%emt 0:00:03]} 4. cxd5 {[%emt 0:00:01]}
exd5 {[%emt 0:00:02]} 5. Bg5 {[%emt 0:00:01]} c6 {[%emt 0:00:01]} 6. e3 {
[%emt 0:00:02]} Be7 {[%emt 0:00:02]} 7. Bd3 {[%emt 0:00:02]} Nbd7 {[%emt 0:00:
02]} 8. Qc2 {[%emt 0:00:03]} Nf8 {[%emt 0:00:02]} 9. h3 {[%emt 0:00:13]} Ne6 {
[%emt 0:00:06]} 10. Bh4 {[%emt 0:00:02]} g6 {[%emt 0:00:08]} 11. Nf3 {[%emt 0:
00:13]} O-O {[%emt 0:00:17]} 12. O-O {[%emt 0:00:08]} Ng7 {[%emt 0:00:06]} 13.
Bxf6 {[%emt 0:00:44]} Bxf6 {[%emt 0:00:03]} 14. b4 {[%emt 0:00:01]} a6 {
[%emt 0:00:46]} 15. a4 {[%emt 0:00:01]} Bf5 {[%emt 0:00:05]} 16. b5 {[%emt 0:
00:13]} axb5 {[%emt 0:01:00]} 17. axb5 {[%emt 0:00:02]} Bxd3 {[%emt 0:00:09]}
18. Qxd3 {[%emt 0:00:01]} Nf5 {[%emt 0:00:03]} 19. bxc6 {[%emt 0:00:10]} bxc6 {
[%emt 0:00:03]} 20. Na4 {[%emt 0:00:16]} Qa5 {[%emt 0:00:18]} 21. Rfc1 {
[%emt 0:00:38]} Rfc8 {[%emt 0:00:13]} 22. Qd1 {[%emt 0:00:05]} Qd8 {[%emt 0:00:
06]} 23. Nc5 {[%emt 0:00:03]} Nd6 {[%emt 0:00:01]} 24. Rxa8 {[%emt 0:00:09]}
Rxa8 {[%emt 0:00:01]} 25. Ra1 {[%emt 0:00:01]} Nc4 {[%emt 0:00:03]} 26. Rxa8 {
[%emt 0:00:05]} Qxa8 {[%emt 0:00:00]} 27. Qb1 {[%emt 0:00:02]} Be7 {[%emt 0:00:
03]} 28. Nd3 {[%emt 0:00:05]} Bd6 {[%emt 0:00:02]} 29. g3 {[%emt 0:00:11]} Kg7
{[%emt 0:00:02]} 30. Kg2 {[%emt 0:00:01]} Qa3 {[%emt 0:00:02]} 31. h4 {[%emt 0:
00:08]} h6 {[%emt 0:00:03]} 32. Nde5 {[%emt 0:00:11]} Bxe5 {[%emt 0:00:03]} 33.
dxe5 {[%emt 0:00:05]} Qc3 {[%emt 0:00:05]} 34. h5 {[%emt 0:00:03]} g5 {[%emt 0:
00:03]} 35. e6 {[%emt 0:00:01]} fxe6 {[%emt 0:00:02]} 36. Qg6+ {[%emt 0:00:01]}
Kf8 {[%emt 0:00:01]} 37. Qxh6+ {[%emt 0:00:02]} Qg7 {[%emt 0:00:02]} 38. Qxe6 {
[%emt 0:00:01]} g4 {[%emt 0:00:02]} 39. Nd4 {[%emt 0:00:02]} c5 {[%emt 0:00:03]
} 40. Nf5 {[%emt 0:00:02]} Qf7 {[%emt 0:00:02]} 41. Qc8+ {[%emt 0:00:03]} Qe8 {
[%emt 0:00:01]} 42. Qxc5+ {[%emt 0:00:01]} Kg8 {[%emt 0:00:02]} 43. Qxd5+ {
[%emt 0:00:01]} 1-0

[Event "FIDE Women World Blitz 2021"]
[Site "Warsaw"]
[Date "2021.12.29"]
[Round "3.3"]
[White "Gunina, Valentina"]
[Black "Socko, Monika"]
[Result "1-0"]
[ECO "A40"]
[WhiteElo "2480"]
[BlackElo "2393"]
[Annotator "ChessBase"]
[PlyCount "63"]
[EventDate "2021.12.29"]
[EventType "swiss"]
[EventCountry "POL"]
[Tiebreak "Cut1 Buchholz"]
[SourceTitle "playchess.com"]
[Source "ChessBase"]
[SourceQuality "1"]
[TimeControl "180+2"]

1. d4 {[%emt 0:00:02]} e6 {[%emt 0:00:01]} 2. c4 {[%emt 0:00:02]} b6 {[%emt 0:
00:01]} 3. Nf3 {[%emt 0:00:02]} Bb7 {[%emt 0:00:01]} 4. g3 {[%emt 0:00:01]}
Bb4+ {[%emt 0:00:01]} 5. Bd2 {[%emt 0:00:01]} Bxf3 {[%emt 0:00:01]} 6. exf3 {
[%emt 0:00:02]} Bxd2+ {[%emt 0:00:01]} 7. Qxd2 {[%emt 0:00:02]} d5 {[%emt 0:00:
11]} 8. f4 {[%emt 0:00:11]} Ne7 {[%emt 0:00:04]} 9. Nc3 {[%emt 0:00:05]} O-O {
[%emt 0:00:06]} 10. Bg2 {[%emt 0:00:03]} Nbc6 {[%emt 0:00:20]} 11. O-O-O {
[%emt 0:00:19]} Na5 {[%emt 0:00:20]} 12. cxd5 {[%emt 0:00:07]} Nxd5 {[%emt 0:
00:03]} 13. f5 {[%emt 0:00:05]} Qd7 {[%emt 0:00:25]} 14. f6 {[%emt 0:00:44]}
Nxf6 {[%emt 0:00:26]} 15. Bxa8 {[%emt 0:00:02]} Rxa8 {[%emt 0:00:01]} 16. d5 {
[%emt 0:00:05]} h6 {[%emt 0:00:35]} 17. Rhe1 {[%emt 0:00:07]} exd5 {[%emt 0:00:
09]} 18. Nxd5 {[%emt 0:00:05]} Qc6+ {[%emt 0:00:21]} 19. Kb1 {[%emt 0:00:11]}
Kh8 {[%emt 0:00:02]} 20. Nxf6 {[%emt 0:00:08]} Qxf6 {[%emt 0:00:00]} 21. Qd4 {
[%emt 0:00:02]} Qf5+ {[%emt 0:00:04]} 22. Qe4 {[%emt 0:00:02]} Qc8 {[%emt 0:00:
03]} 23. Rd5 {[%emt 0:00:09]} Nb7 {[%emt 0:00:20]} 24. Qe7 {[%emt 0:00:17]} Nd6
{[%emt 0:00:00]} 25. Rc1 {[%emt 0:00:02]} Qg4 {[%emt 0:00:00]} 26. f4 {[%emt 0:
00:16]} Qf3 {[%emt 0:00:00]} 27. Rd2 {[%emt 0:00:05]} Re8 {[%emt 0:00:07]} 28.
Qxc7 {[%emt 0:00:03]} Ne4 {[%emt 0:00:03]} 29. Rd8 {[%emt 0:00:05]} Rxd8 {
[%emt 0:00:01]} 30. Qxd8+ {[%emt 0:00:01]} Kh7 {[%emt 0:00:00]} 31. Qd7 {
[%emt 0:00:06]} Qe3 {[%emt 0:00:05]} 32. Qf5+ {[%emt 0:00:01]} 1-0

[Event "FIDE Women World Blitz 2021"]
[Site "Warsaw"]
[Date "2021.12.29"]
[Round "3.3"]
[White "Strutinskaia, Galina"]
[Black "Beydullayeva, Govhar"]
[Result "1-0"]
[ECO "E21"]
[WhiteElo "2188"]
[BlackElo "2278"]
[Annotator "NA"]
[PlyCount "71"]
[EventDate "2021.12.29"]
[EventType "swiss"]
[EventCountry "POL"]
[Tiebreak "Cut1 Buchholz"]
[SourceTitle "playchess.com"]
[Source "ChessBase"]
[SourceQuality "1"]
[TimeControl "180+2"]

1. d4 {[%emt 0:00:00]} Nf6 {[%emt 0:00:00]} 2. c4 {[%emt 0:00:01]} e6 {[%emt 0:
00:00]} 3. Nc3 {[%emt 0:00:02]} Bb4 {[%emt 0:00:01]} 4. Bd2 {[%emt 0:00:01]}
O-O {[%emt 0:00:04]} 5. a3 {[%emt 0:00:01]} Bxc3 {[%emt 0:00:01]} 6. Bxc3 {
[%emt 0:00:01]} b6 {[%emt 0:00:00]} 7. Nf3 {[%emt 0:00:03]} Bb7 {[%emt 0:00:00]
} 8. e3 {[%emt 0:00:01]} d6 {[%emt 0:00:06]} 9. Rc1 {[%emt 0:00:03]} Nbd7 {
[%emt 0:00:01]} 10. b4 {[%emt 0:00:03]} Ne4 {[%emt 0:00:06]} 11. Bb2 {[%emt 0:
00:02]} c5 {[%emt 0:00:11]} 12. Qc2 {[%emt 0:00:04]} Qe7 {[%emt 0:00:21]} 13.
Bd3 {[%emt 0:00:02]} f5 {[%emt 0:00:00]} 14. O-O {[%emt 0:00:02]} Rac8 {
[%emt 0:00:04]} 15. Rfd1 {[%emt 0:00:15]} Ndf6 {[%emt 0:00:25]} 16. dxc5 {
[%emt 0:00:05]} bxc5 {[%emt 0:00:08]} 17. b5 {[%emt 0:00:08]} Ng4 {[%emt 0:00:
06]} 18. Rf1 {[%emt 0:00:09]} Ng5 {[%emt 0:00:06]} 19. Ne1 {[%emt 0:00:25]} Qf7
{[%emt 0:00:33]} 20. Qc3 {[%emt 0:00:10]} e5 {[%emt 0:00:04]} 21. h3 {[%emt 0:
00:06]} Nh6 {[%emt 0:00:27]} 22. f4 {[%emt 0:00:02]} Ne4 {[%emt 0:00:11]} 23.
Qa5 {[%emt 0:00:05]} Ng3 {[%emt 0:00:21]} 24. Rf2 {[%emt 0:00:03]} Qh5 {
[%emt 0:00:12]} 25. Qxa7 {[%emt 0:00:11]} Rf7 {[%emt 0:00:07]} 26. Qb6 {
[%emt 0:00:02]} Ng4 {[%emt 0:00:06]} 27. Qxd6 {[%emt 0:00:16]} Nxf2 {[%emt 0:
00:06]} 28. Kxf2 {[%emt 0:00:01]} exf4 {[%emt 0:00:04]} 29. Qxf4 {[%emt 0:00:
12]} Ne4+ {[%emt 0:00:01]} 30. Kg1 {[%emt 0:00:01]} Rd8 {[%emt 0:00:06]} 31. a4
{[%emt 0:00:06]} g5 {[%emt 0:00:03]} 32. Qe5 {[%emt 0:00:02]} Nf6 {[%emt 0:00:
02]} 33. a5 {[%emt 0:00:07]} Qg6 {[%emt 0:00:02]} 34. Bxf5 {[%emt 0:00:03]} Qh5
{[%emt 0:00:01]} 35. Be6 {[%emt 0:00:03]} Rdf8 {[%emt 0:00:02]} 36. Qxf6 {
[%emt 0:00:03]} 1-0

[Event "FIDE Women World Blitz 2021"]
[Site "Warsaw"]
[Date "2021.12.29"]
[Round "3.4"]
[White "Efroimski, Marsel"]
[Black "Goryachkina, Aleksandra"]
[Result "0-1"]
[ECO "B12"]
[WhiteElo "2419"]
[BlackElo "2604"]
[Annotator "ChessBase"]
[PlyCount "81"]
[EventDate "2021.12.29"]
[EventType "swiss"]
[EventCountry "POL"]
[Tiebreak "Cut1 Buchholz"]
[SourceTitle "playchess.com"]
[Source "ChessBase"]
[SourceQuality "1"]
[TimeControl "180+2"]

1. e4 {[%emt 0:00:01]} c6 {[%emt 0:00:02]} 2. d4 {[%emt 0:00:01]} d5 {[%emt 0:
00:01]} 3. e5 {[%emt 0:00:00]} c5 {[%emt 0:00:02]} 4. dxc5 {[%emt 0:00:02]} e6
{[%emt 0:00:02]} 5. Be3 {[%emt 0:00:01]} Nd7 {[%emt 0:00:05]} 6. Nf3 {[%emt 0:
00:04]} Bxc5 {[%emt 0:00:09]} 7. Bxc5 {[%emt 0:00:01]} Nxc5 {[%emt 0:00:01]} 8.
Qd4 {[%emt 0:00:01]} b6 {[%emt 0:00:16]} 9. Qg4 {[%emt 0:00:11]} g6 {[%emt 0:
00:16]} 10. h4 {[%emt 0:00:09]} h5 {[%emt 0:00:10]} 11. Qf4 {[%emt 0:00:02]}
Ne7 {[%emt 0:00:09]} 12. Nbd2 {[%emt 0:00:01]} Nf5 {[%emt 0:00:04]} 13. Ng5 {
[%emt 0:00:13]} Qc7 {[%emt 0:00:20]} 14. Ndf3 {[%emt 0:00:22]} Bb7 {[%emt 0:00:
14]} 15. Nd4 {[%emt 0:00:07]} O-O-O {[%emt 0:00:19]} 16. O-O-O {[%emt 0:00:09]}
Kb8 {[%emt 0:00:05]} 17. f3 {[%emt 0:00:15]} Rd7 {[%emt 0:00:26]} 18. g4 {
[%emt 0:00:19]} hxg4 {[%emt 0:00:07]} 19. fxg4 {[%emt 0:00:01]} Nxd4 {[%emt 0:
00:10]} 20. Qxd4 {[%emt 0:00:02]} Rc8 {[%emt 0:00:06]} 21. Rh2 {[%emt 0:00:02]}
f6 {[%emt 0:00:10]} 22. Nf3 {[%emt 0:00:05]} Ne4 {[%emt 0:00:11]} 23. exf6 {
[%emt 0:00:04]} Qf4+ {[%emt 0:00:01]} 24. Kb1 {[%emt 0:00:34]} Qxf3 {[%emt 0:
00:02]} 25. Bg2 {[%emt 0:00:02]} Qf4 {[%emt 0:00:01]} 26. Bxe4 {[%emt 0:00:05]}
Qxh2 {[%emt 0:00:02]} 27. Bxg6 {[%emt 0:00:01]} e5 {[%emt 0:00:05]} 28. Qe3 {
[%emt 0:00:18]} e4 {[%emt 0:00:04]} 29. Rc1 {[%emt 0:00:06]} d4 {[%emt 0:00:04]
} 30. Qa3 {[%emt 0:00:12]} Rdc7 {[%emt 0:00:05]} 31. Bf5 {[%emt 0:00:25]} Rxc2
{[%emt 0:00:02]} 32. Bxc8 {[%emt 0:00:02]} Rxc1+ {[%emt 0:00:02]} 33. Kxc1 {
[%emt 0:00:01]} Qf4+ {[%emt 0:00:01]} 34. Kc2 {[%emt 0:00:03]} Bxc8 {[%emt 0:
00:02]} 35. Qe7 {[%emt 0:00:02]} d3+ {[%emt 0:00:04]} 36. Kc3 {[%emt 0:00:02]}
d2 {[%emt 0:00:03]} 37. Qd8 {[%emt 0:00:04]} e3 {[%emt 0:00:04]} 38. f7 {
[%emt 0:00:04]} Qxf7 {[%emt 0:00:02]} 39. g5 {[%emt 0:00:03]} Qc7+ {[%emt 0:00:
03]} 40. Qxc7+ {[%emt 0:00:01]} Kxc7 {[%emt 0:00:01]} 41. Kd4 {[%emt 0:00:06]}
0-1

[Event "FIDE Women World Blitz 2021"]
[Site "Warsaw"]
[Date "2021.12.29"]
[Round "3.4"]
[White "Utiatskaja, Irina"]
[Black "Sandu, Mihaela"]
[Result "0-1"]
[ECO "B90"]
[WhiteElo "2184"]
[BlackElo "2244"]
[Annotator "NA"]
[PlyCount "36"]
[EventDate "2021.12.29"]
[EventType "swiss"]
[EventCountry "POL"]
[Tiebreak "Cut1 Buchholz"]
[SourceTitle "playchess.com"]
[Source "ChessBase"]
[SourceQuality "1"]
[TimeControl "180+2"]

1. e4 {[%emt 0:00:01]} c5 {[%emt 0:00:00]} 2. Nf3 {[%emt 0:00:01]} d6 3. d4 {
[%emt 0:00:02]} cxd4 {[%emt 0:00:01]} 4. Nxd4 {[%emt 0:00:01]} Nf6 {[%emt 0:00:
01]} 5. Nc3 {[%emt 0:00:01]} a6 {[%emt 0:00:01]} 6. Be3 {[%emt 0:00:02]} b5 {
[%emt 0:00:01]} 7. a4 {[%emt 0:00:09]} b4 {[%emt 0:00:02]} 8. Nd5 {[%emt 0:00:
01]} e6 {[%emt 0:00:11]} 9. Nxf6+ {[%emt 0:00:07]} Qxf6 {[%emt 0:00:01]} 10.
Qd2 {[%emt 0:00:10]} Be7 {[%emt 0:00:13]} 11. Be2 {[%emt 0:00:40]} O-O {
[%emt 0:00:03]} 12. O-O {[%emt 0:00:13]} Bb7 {[%emt 0:00:05]} 13. Bd3 {[%emt 0:
00:15]} d5 {[%emt 0:00:13]} 14. f3 {[%emt 0:00:18]} Nd7 {[%emt 0:00:02]} 15.
Ne2 {[%emt 0:00:16]} Ne5 {[%emt 0:00:01]} 16. Ng3 {[%emt 0:00:05]} Nxd3 {
[%emt 0:00:18]} 17. cxd3 {[%emt 0:00:01]} Rac8 {[%emt 0:00:14]} 18. d4 {
[%emt 0:00:01]} dxe4 {[%emt 0:00:09]} 0-1

[Event "FIDE Women World Blitz 2021"]
[Site "Warsaw"]
[Date "2021.12.29"]
[Round "3.5"]
[White "Zatonskih, Anna"]
[Black "Buksa, Nataliya"]
[Result "0-1"]
[ECO "D35"]
[WhiteElo "2394"]
[BlackElo "2199"]
[Annotator "NA"]
[PlyCount "86"]
[EventDate "2021.12.29"]
[EventType "swiss"]
[EventCountry "POL"]
[Tiebreak "Cut1 Buchholz"]
[SourceTitle "playchess.com"]
[Source "ChessBase"]
[SourceQuality "1"]
[TimeControl "180+2"]

1. d4 {[%emt 0:00:01]} d5 {[%emt 0:00:01]} 2. c4 {[%emt 0:00:01]} e6 {[%emt 0:
00:01]} 3. Nc3 {[%emt 0:00:01]} Be7 {[%emt 0:00:01]} 4. cxd5 {[%emt 0:00:11]}
exd5 {[%emt 0:00:00]} 5. Bf4 {[%emt 0:00:03]} Nf6 {[%emt 0:00:02]} 6. e3 {
[%emt 0:00:03]} c6 {[%emt 0:00:01]} 7. Bd3 {[%emt 0:00:03]} Nbd7 {[%emt 0:00:
16]} 8. Qc2 {[%emt 0:00:13]} Nh5 {[%emt 0:00:22]} 9. Bg3 {[%emt 0:00:23]} Nxg3
{[%emt 0:00:05]} 10. hxg3 {[%emt 0:00:01]} h6 {[%emt 0:00:04]} 11. Nf3 {
[%emt 0:00:09]} Nb6 {[%emt 0:00:03]} 12. Ne5 {[%emt 0:00:06]} Bd6 {[%emt 0:00:
07]} 13. O-O-O {[%emt 0:00:21]} Bxe5 {[%emt 0:00:14]} 14. dxe5 {[%emt 0:00:01]}
Qe7 {[%emt 0:00:01]} 15. f4 {[%emt 0:00:08]} Bg4 {[%emt 0:00:02]} 16. Be2 {
[%emt 0:00:24]} Bxe2 {[%emt 0:00:14]} 17. Nxe2 {[%emt 0:00:01]} O-O-O {[%emt 0:
00:02]} 18. Nd4 {[%emt 0:00:04]} Kb8 {[%emt 0:00:01]} 19. Kb1 {[%emt 0:00:12]}
Nc4 {[%emt 0:00:20]} 20. Qc3 {[%emt 0:00:17]} g6 {[%emt 0:00:18]} 21. b3 {
[%emt 0:00:13]} Nb6 {[%emt 0:00:28]} 22. Rc1 {[%emt 0:00:13]} Rc8 {[%emt 0:00:
01]} 23. g4 {[%emt 0:00:08]} Qd7 {[%emt 0:00:04]} 24. f5 {[%emt 0:00:03]} c5 {
[%emt 0:00:18]} 25. e6 {[%emt 0:00:04]} cxd4 {[%emt 0:00:05]} 26. exd7 {
[%emt 0:00:02]} Rxc3 {[%emt 0:00:00]} 27. Rxh6 {[%emt 0:00:11]} Rxc1+ {[%emt 0:
00:16]} 28. Kxc1 {[%emt 0:00:01]} Rd8 {[%emt 0:00:01]} 29. fxg6 {[%emt 0:00:00]
} fxg6 {[%emt 0:00:02]} 30. exd4 {[%emt 0:00:01]} Rxd7 {[%emt 0:00:03]} 31.
Rxg6 {[%emt 0:00:00]} Rf7 {[%emt 0:00:02]} 32. Kd2 {[%emt 0:00:13]} Rf2+ {
[%emt 0:00:01]} 33. Ke3 {[%emt 0:00:01]} Rxa2 {[%emt 0:00:06]} 34. Kf3 {
[%emt 0:00:01]} Rb2 {[%emt 0:00:01]} 35. g5 {[%emt 0:00:01]} Rxb3+ {[%emt 0:00:
01]} 36. Kf4 {[%emt 0:00:01]} Rd3 {[%emt 0:00:03]} 37. Ke5 {[%emt 0:00:01]} Rg3
{[%emt 0:00:04]} 38. Kd6 {[%emt 0:00:06]} a5 {[%emt 0:00:11]} 39. Kc5 {[%emt 0:
00:09]} Ka7 {[%emt 0:00:00]} 40. Rd6 {[%emt 0:00:06]} a4 {[%emt 0:00:07]} 41.
g6 {[%emt 0:00:01]} a3 {[%emt 0:00:01]} 42. Rxb6 {[%emt 0:00:04]} a2 {[%emt 0:
00:05]} 43. g7 {[%emt 0:00:05]} a1=Q {[%emt 0:00:02]} 0-1

[Event "FIDE Women World Blitz 2021"]
[Site "Warsaw"]
[Date "2021.12.29"]
[Round "3.5"]
[White "Kubicka, Anna"]
[Black "Paramzina, Anastasya"]
[Result "0-1"]
[ECO "B51"]
[WhiteElo "2273"]
[BlackElo "2260"]
[Annotator "NA"]
[PlyCount "56"]
[EventDate "2021.12.29"]
[EventType "swiss"]
[EventCountry "POL"]
[Tiebreak "Cut1 Buchholz"]
[SourceTitle "playchess.com"]
[Source "ChessBase"]
[SourceQuality "1"]
[TimeControl "180+2"]

1. e4 {[%emt 0:00:01]} c5 {[%emt 0:00:00]} 2. Nf3 {[%emt 0:00:01]} d6 {[%emt 0:
00:01]} 3. Bb5+ {[%emt 0:00:01]} Nd7 {[%emt 0:00:01]} 4. O-O {[%emt 0:00:02]}
a6 {[%emt 0:00:01]} 5. Bd3 {[%emt 0:00:02]} Ngf6 {[%emt 0:00:03]} 6. c3 {
[%emt 0:00:01]} b5 {[%emt 0:00:02]} 7. a4 {[%emt 0:00:01]} Bb7 {[%emt 0:00:05]}
8. Qe2 {[%emt 0:00:03]} c4 {[%emt 0:00:18]} 9. Bc2 {[%emt 0:00:01]} e6 {
[%emt 0:00:04]} 10. d4 {[%emt 0:00:09]} cxd3 {[%emt 0:00:02]} 11. Bxd3 {
[%emt 0:00:02]} bxa4 {[%emt 0:00:07]} 12. Bg5 {[%emt 0:00:31]} Nc5 {[%emt 0:00:
40]} 13. Bc2 {[%emt 0:00:25]} Be7 {[%emt 0:00:03]} 14. Nbd2 {[%emt 0:00:04]}
O-O {[%emt 0:00:07]} 15. Rfe1 {[%emt 0:00:08]} h6 {[%emt 0:00:07]} 16. Bxf6 {
[%emt 0:00:06]} Bxf6 {[%emt 0:00:01]} 17. Rad1 {[%emt 0:00:01]} Qc7 {[%emt 0:
00:06]} 18. Nc4 {[%emt 0:00:06]} Rfd8 {[%emt 0:00:09]} 19. Nxd6 {[%emt 0:00:27]
} Rxd6 {[%emt 0:00:23]} 20. Rxd6 {[%emt 0:00:02]} Qxd6 {[%emt 0:00:02]} 21. e5
{[%emt 0:00:01]} Bxe5 {[%emt 0:00:33]} 22. Nxe5 {[%emt 0:00:03]} Qd5 {[%emt 0:
00:06]} 23. Qg4 {[%emt 0:00:10]} Qd2 {[%emt 0:00:08]} 24. Qd1 {[%emt 0:00:30]}
Qg5 {[%emt 0:00:06]} 25. f3 {[%emt 0:00:16]} Rd8 {[%emt 0:00:03]} 26. Qc1 {
[%emt 0:00:16]} Rd2 {[%emt 0:00:04]} 27. Ng4 {[%emt 0:00:02]} Rxg2+ {[%emt 0:
00:08]} 28. Kxg2 {[%emt 0:00:04]} Qxg4+ {[%emt 0:00:01]} 0-1

[Event "FIDE Women World Blitz 2021"]
[Site "Warsaw"]
[Date "2021.12.29"]
[Round "3.6"]
[White "Doluhanova, Evgeniya"]
[Black "Smirnova, Ekaterina"]
[Result "1-0"]
[ECO "D12"]
[WhiteElo "2237"]
[BlackElo "2196"]
[Annotator "NA"]
[PlyCount "169"]
[EventDate "2021.12.29"]
[EventType "swiss"]
[EventCountry "POL"]
[Tiebreak "Cut1 Buchholz"]
[SourceTitle "playchess.com"]
[Source "ChessBase"]
[SourceQuality "1"]
[TimeControl "180+2"]

1. Nf3 {[%emt 0:00:01]} d5 {[%emt 0:00:00]} 2. b3 {[%emt 0:00:01]} Nf6 {
[%emt 0:00:02]} 3. Bb2 {[%emt 0:00:01]} Bf5 {[%emt 0:00:01]} 4. e3 {[%emt 0:00:
03]} e6 {[%emt 0:00:02]} 5. c4 {[%emt 0:00:04]} Be7 {[%emt 0:00:06]} 6. Nc3 {
[%emt 0:00:05]} h6 {[%emt 0:00:03]} 7. d4 {[%emt 0:00:02]} O-O {[%emt 0:00:03]}
8. Bd3 {[%emt 0:00:02]} Bxd3 {[%emt 0:00:04]} 9. Qxd3 {[%emt 0:00:02]} c6 {
[%emt 0:00:17]} 10. O-O {[%emt 0:00:02]} Nbd7 {[%emt 0:00:01]} 11. h3 {[%emt 0:
00:19]} a5 {[%emt 0:00:02]} 12. Rad1 {[%emt 0:00:05]} Qc7 {[%emt 0:00:12]} 13.
e4 {[%emt 0:00:07]} dxe4 {[%emt 0:00:02]} 14. Nxe4 {[%emt 0:00:01]} Nxe4 {
[%emt 0:00:02]} 15. Qxe4 {[%emt 0:00:02]} Nf6 {[%emt 0:00:03]} 16. Qe3 {
[%emt 0:00:10]} a4 {[%emt 0:00:06]} 17. Rfe1 {[%emt 0:00:03]} axb3 {[%emt 0:00:
10]} 18. axb3 {[%emt 0:00:02]} Ra2 {[%emt 0:00:01]} 19. Bc3 {[%emt 0:00:02]}
Ra3 {[%emt 0:00:16]} 20. Bb2 {[%emt 0:00:19]} Ra2 {[%emt 0:00:01]} 21. Bc3 {
[%emt 0:00:03]} Ra3 {[%emt 0:00:01]} 22. Rb1 {[%emt 0:00:11]} Rfa8 {[%emt 0:00:
08]} 23. Ne5 {[%emt 0:00:02]} Bd6 {[%emt 0:00:20]} 24. Qf3 {[%emt 0:00:24]}
Bxe5 {[%emt 0:00:34]} 25. dxe5 {[%emt 0:00:08]} Nd7 {[%emt 0:00:14]} 26. Qg3 {
[%emt 0:00:01]} Qb6 {[%emt 0:00:13]} 27. Bd2 {[%emt 0:00:06]} Nf8 {[%emt 0:00:
22]} 28. Bxh6 {[%emt 0:00:06]} Ng6 {[%emt 0:00:02]} 29. Bd2 {[%emt 0:00:10]}
Qd4 {[%emt 0:00:03]} 30. Bc3 {[%emt 0:00:19]} Qb6 {[%emt 0:00:04]} 31. Qe3 {
[%emt 0:00:15]} Qxe3 {[%emt 0:00:09]} 32. Rxe3 {[%emt 0:00:03]} Ra2 {[%emt 0:
00:05]} 33. Bb4 {[%emt 0:00:07]} Rd8 {[%emt 0:00:03]} 34. Bd6 {[%emt 0:00:01]}
Rd2 {[%emt 0:00:06]} 35. g3 {[%emt 0:00:03]} f6 {[%emt 0:00:02]} 36. Ra1 {
[%emt 0:00:12]} fxe5 {[%emt 0:00:01]} 37. Bxe5 {[%emt 0:00:01]} Nxe5 {[%emt 0:
00:02]} 38. Rxe5 {[%emt 0:00:02]} Kf7 {[%emt 0:00:01]} 39. Re3 {[%emt 0:00:03]}
Rd1+ {[%emt 0:00:02]} 40. Rxd1 {[%emt 0:00:03]} Rxd1+ {[%emt 0:00:02]} 41. Kg2
{[%emt 0:00:01]} Rb1 {[%emt 0:00:01]} 42. h4 {[%emt 0:00:01]} g6 {[%emt 0:00:
01]} 43. g4 {[%emt 0:00:02]} b5 {[%emt 0:00:02]} 44. cxb5 {[%emt 0:00:02]} cxb5
{[%emt 0:00:00]} 45. Kg3 {[%emt 0:00:03]} Rb2 {[%emt 0:00:02]} 46. f3 {[%emt 0:
00:03]} Kf6 {[%emt 0:00:02]} 47. Kf4 {[%emt 0:00:02]} Rb1 {[%emt 0:00:01]} 48.
g5+ {[%emt 0:00:05]} Ke7 {[%emt 0:00:02]} 49. Rc3 {[%emt 0:00:03]} Rh1 {
[%emt 0:00:02]} 50. Kg3 {[%emt 0:00:07]} Rg1+ {[%emt 0:00:01]} 51. Kf2 {
[%emt 0:00:05]} Rh1 {[%emt 0:00:02]} 52. Rc5 {[%emt 0:00:03]} Rxh4 {[%emt 0:00:
04]} 53. Rxb5 {[%emt 0:00:01]} Rd4 {[%emt 0:00:05]} 54. Rb7+ {[%emt 0:00:04]}
Kf8 {[%emt 0:00:03]} 55. Kg3 {[%emt 0:00:02]} Rd3 {[%emt 0:00:03]} 56. b4 {
[%emt 0:00:02]} e5 {[%emt 0:00:01]} 57. Kg4 {[%emt 0:00:03]} Rd4+ {[%emt 0:00:
01]} 58. Kg3 {[%emt 0:00:01]} Rd3 {[%emt 0:00:02]} 59. Kf2 {[%emt 0:00:03]}
Rd2+ {[%emt 0:00:01]} 60. Ke3 {[%emt 0:00:03]} Rg2 {[%emt 0:00:01]} 61. b5 {
[%emt 0:00:03]} Rxg5 {[%emt 0:00:01]} 62. b6 {[%emt 0:00:00]} Rg1 {[%emt 0:00:
03]} 63. Ke4 {[%emt 0:00:02]} Re1+ {[%emt 0:00:03]} 64. Kd5 {[%emt 0:00:01]}
Rb1 {[%emt 0:00:04]} 65. Kxe5 {[%emt 0:00:02]} Rb3 {[%emt 0:00:04]} 66. f4 {
[%emt 0:00:01]} Rb1 {[%emt 0:00:01]} 67. Kf6 {[%emt 0:00:02]} Kg8 {[%emt 0:00:
09]} 68. Kxg6 {[%emt 0:00:02]} Rg1+ {[%emt 0:00:02]} 69. Kf6 {[%emt 0:00:01]}
Rf1 {[%emt 0:00:02]} 70. f5 {[%emt 0:00:02]} Rb1 {[%emt 0:00:01]} 71. Rb8+ {
[%emt 0:00:01]} Kh7 {[%emt 0:00:01]} 72. b7 {[%emt 0:00:01]} Rb6+ {[%emt 0:00:
02]} 73. Kf7 {[%emt 0:00:01]} Rb5 {[%emt 0:00:02]} 74. f6 {[%emt 0:00:07]} Rb1
{[%emt 0:00:01]} 75. Ke6 {[%emt 0:00:09]} Re1+ {[%emt 0:00:02]} 76. Kd7 {
[%emt 0:00:02]} Rd1+ {[%emt 0:00:01]} 77. Ke8 {[%emt 0:00:01]} Re1+ {[%emt 0:
00:03]} 78. Kf8 {[%emt 0:00:01]} Rb1 {[%emt 0:00:02]} 79. f7 {[%emt 0:00:02]}
Rb2 {[%emt 0:00:03]} 80. Ke8 {[%emt 0:00:04]} Re2+ {[%emt 0:00:01]} 81. Kd7 {
[%emt 0:00:01]} Rd2+ {[%emt 0:00:01]} 82. Ke6 {[%emt 0:00:02]} Re2+ {[%emt 0:
00:01]} 83. Kd5 {[%emt 0:00:01]} Rd2+ {[%emt 0:00:03]} 84. Ke4 {[%emt 0:00:01]}
Rf2 {[%emt 0:00:06]} 85. f8=Q {[%emt 0:00:01]} 1-0